[Event "*** Monthly 3|2 Blitz Masters"]
[Site "Chess.com"]
[Date "2014.11.25"]
[Round "1"]
[White "Sebastian"]
[Black "IMLevAltounian"]
[Result "1-0"]
[WhiteElo "2523"]
[BlackElo "2203"]
[TimeControl "180+2"]
[EndTime "11:08:30 PST"]
[Termination "Sebastian won by resignation"]

1. e4 {[%clk 0:02:59]} 1... d6 {[%clk 0:02:56.9]} 2. d4 {[%clk 0:02:59.6]} 2...
Nf6 {[%clk 0:02:56.3]} 3. Nc3 {[%clk 0:03:00.9]} 3... e5 {[%clk 0:02:56.2]} 4.
Nf3 {[%clk 0:03:01.4]} 4... exd4 {[%clk 0:02:56.2]} 5. Nxd4 {[%clk 0:03:00.2]}
5... Be7 {[%clk 0:02:57.9]} 6. Bf4 {[%clk 0:03:00.7]} 6... O-O {[%clk
0:02:57.5]} 7. Qd2 {[%clk 0:03:01.8]} 7... Nc6 {[%clk 0:02:49.2]} 8. O-O-O
{[%clk 0:02:56.2]} 8... Nxd4 {[%clk 0:02:49.9]} 9. Qxd4 {[%clk 0:02:56.8]} 9...
Be6 {[%clk 0:02:51.6]} 10. Kb1 {[%clk 0:02:58.1]} 10... Nd7 {[%clk 0:02:50.2]}
11. Nd5 {[%clk 0:02:59.2]} 11... Bxd5 {[%clk 0:02:49.3]} 12. Qxd5 {[%clk
0:03:00.6]} 12... Rb8 {[%clk 0:02:42.1]} 13. Bc1 {[%clk 0:02:49.8]} 13... Re8
{[%clk 0:02:39.6]} 14. f3 {[%clk 0:02:34.7]} 14... Bf8 {[%clk 0:02:39.1]} 15. h4
{[%clk 0:02:31.5]} 15... c6 {[%clk 0:02:38.2]} 16. Qd2 {[%clk 0:02:21]} 16... b5
{[%clk 0:02:35.3]} 17. h5 {[%clk 0:02:21.9]} 17... h6 {[%clk 0:02:36.2]} 18. Be2
{[%clk 0:02:10.9]} 18... Ne5 {[%clk 0:02:29.1]} 19. g4 {[%clk 0:02:06.9]} 19...
Nc4 {[%clk 0:02:16.8]} 20. Qd4 {[%clk 0:02:03.4]} 20... d5 {[%clk 0:02:13.9]}
21. Bd3 {[%clk 0:01:51.6]} 21... Ne5 {[%clk 0:01:52.3]} 22. exd5 {[%clk
0:01:42.7]} 22... Qxd5 {[%clk 0:01:48.2]} 23. Qxd5 {[%clk 0:01:27.6]} 23... cxd5
{[%clk 0:01:50.1]} 24. Rhf1 {[%clk 0:01:27.4]} 24... Bc5 {[%clk 0:01:40.6]} 25.
b3 {[%clk 0:01:25.5]} 25... a6 {[%clk 0:01:38.8]} 26. Bb2 {[%clk 0:01:26.1]}
26... Rbd8 {[%clk 0:01:35.6]} 27. Bf5 {[%clk 0:01:10]} 27... d4 {[%clk
0:01:24.9]} 28. f4 {[%clk 0:01:01.3]} 28... Nc6 {[%clk 0:01:19.3]} 29. g5 {[%clk
0:01:00.9]} 29... hxg5 {[%clk 0:01:17.5]} 30. fxg5 {[%clk 0:01:01.3]} 30... Re5
{[%clk 0:01:18.1]} 31. g6 {[%clk 0:01:01.8]} 31... fxg6 {[%clk 0:01:13.2]} 32.
hxg6 {[%clk 0:01:02.8]} 32... Ne7 {[%clk 0:01:05.4]} 33. Bd3 {[%clk 0:01:03.3]}
33... Rd6 {[%clk 0:01:01.6]} 34. a4 {[%clk 0:01:00.2]} 34... Bb6 {[%clk
0:00:55.7]} 35. axb5 {[%clk 0:01:00.6]} 35... axb5 {[%clk 0:00:57.3]} 36. Ba3
{[%clk 0:00:57.4]} 36... Bc5 {[%clk 0:00:57.6]} 37. Bc1 {[%clk 0:00:51.1]} 37...
Nxg6 {[%clk 0:00:58.1]} 38. Bxb5 {[%clk 0:00:51.7]} 38... Rf6 {[%clk 0:00:55.2]}
39. Bc4+ {[%clk 0:00:51.3]} 39... Kf8 {[%clk 0:00:56.1]} 40. Rh1 {[%clk
0:00:49.9]} 40... Nf4 {[%clk 0:00:54.1]} 41. Rdg1 {[%clk 0:00:49.5]} 41... g5
{[%clk 0:00:53.9]} 42. Rf1 {[%clk 0:00:46.7]} 42... Kg7 {[%clk 0:00:51]} 43.
Rhg1 {[%clk 0:00:47.4]} 43... d3 {[%clk 0:00:45.4]} 44. Rg4 {[%clk 0:00:40.6]}
44... dxc2+ {[%clk 0:00:46.1]} 45. Kxc2 {[%clk 0:00:41.8]} 45... Ref5 {[%clk
0:00:43.7]} 46. Rfxf4 {[%clk 0:00:31.9]} 46... Rxf4 {[%clk 0:00:43.8]} 47. Bxf4
{[%clk 0:00:32.7]} 1-0

[Event "*** Monthly 3|2 Blitz Masters"]
[Site "Chess.com"]
[Date "2014.11.25"]
[Round "1"]
[White "jup1978"]
[Black "GMHess"]
[Result "0-1"]
[WhiteElo "2122"]
[BlackElo "2435"]
[TimeControl "180+2"]
[EndTime "11:08:36 PST"]
[Termination "GMHess won by resignation"]

1. e4 {[%clk 0:02:58.6]} 1... g6 {[%clk 0:02:49]} 2. d4 {[%clk 0:02:55.4]} 2...
Bg7 {[%clk 0:02:43.9]} 3. Nf3 {[%clk 0:02:55.8]} 3... c6 {[%clk 0:02:34]} 4. c3
{[%clk 0:02:55.6]} 4... d5 {[%clk 0:02:34.9]} 5. Bd3 {[%clk 0:02:56.1]} 5...
dxe4 {[%clk 0:02:36]} 6. Bxe4 {[%clk 0:02:56.9]} 6... Nf6 {[%clk 0:02:37.3]} 7.
Bd3 {[%clk 0:02:57.1]} 7... O-O {[%clk 0:02:38.6]} 8. O-O {[%clk 0:02:58.2]}
8... Nbd7 {[%clk 0:02:38.5]} 9. Re1 {[%clk 0:02:59.2]} 9... c5 {[%clk
0:02:39.5]} 10. dxc5 {[%clk 0:02:58]} 10... Nxc5 {[%clk 0:02:40.3]} 11. Bc2
{[%clk 0:02:59.7]} 11... Bg4 {[%clk 0:02:40.5]} 12. Nbd2 {[%clk 0:03:00]} 12...
Nd3 {[%clk 0:02:41.2]} 13. Bxd3 {[%clk 0:03:01.2]} 13... Qxd3 {[%clk 0:02:41.8]}
14. Qe2 {[%clk 0:03:02.5]} 14... Qxe2 {[%clk 0:02:41.9]} 15. Rxe2 {[%clk
0:03:04.2]} 15... e6 {[%clk 0:02:34]} 16. h3 {[%clk 0:03:04.6]} 16... Bf5 {[%clk
0:02:33.9]} 17. Nd4 {[%clk 0:03:03.5]} 17... Bd3 {[%clk 0:02:34.5]} 18. Re1
{[%clk 0:03:05]} 18... Rfd8 {[%clk 0:02:33.3]} 19. N2f3 {[%clk 0:03:05.8]} 19...
h6 {[%clk 0:02:30.4]} 20. Ne5 {[%clk 0:03:03.8]} 20... Ba6 {[%clk 0:02:29]} 21.
Be3 {[%clk 0:03:02.7]} 21... Nd5 {[%clk 0:02:27.9]} 22. Nef3 {[%clk 0:03:00]}
22... Nxe3 {[%clk 0:02:28.4]} 23. Rxe3 {[%clk 0:03:01.9]} 23... Rd5 {[%clk
0:02:26.9]} 24. Ree1 {[%clk 0:02:56.4]} 24... e5 {[%clk 0:02:24.7]} 25. Nb3
{[%clk 0:02:55.2]} 25... Rad8 {[%clk 0:02:19.2]} 26. Rac1 {[%clk 0:02:44.4]}
26... Bc4 {[%clk 0:02:18.9]} 27. Ra1 {[%clk 0:02:36.6]} 27... f5 {[%clk
0:02:16.7]} 28. Rac1 {[%clk 0:02:24.2]} 28... a5 {[%clk 0:02:16.6]} 29. Rc2
{[%clk 0:02:08.3]} 29... e4 {[%clk 0:02:13.9]} 30. Nfd4 {[%clk 0:02:07.3]} 30...
a4 {[%clk 0:02:12.9]} 31. Nc1 {[%clk 0:02:06]} 31... Bxd4 {[%clk 0:02:12.2]} 32.
cxd4 {[%clk 0:02:07.5]} 32... Rxd4 {[%clk 0:02:13.3]} 33. Ne2 {[%clk 0:02:08.6]}
33... Bxe2 {[%clk 0:02:08.3]} 34. Rexe2 {[%clk 0:02:09.4]} 34... R8d7 {[%clk
0:02:07.2]} 35. f3 {[%clk 0:02:07]} 35... exf3 {[%clk 0:02:07.1]} 36. gxf3
{[%clk 0:02:07.9]} 36... Kf7 {[%clk 0:02:08]} 37. Kf2 {[%clk 0:02:09]} 37... Kf6
{[%clk 0:02:03.3]} 38. Rc5 {[%clk 0:02:07]} 38... Rb4 {[%clk 0:01:53]} 39. Rce5
{[%clk 0:02:03.6]} 39... Rd6 {[%clk 0:01:40.4]} 40. Re8 {[%clk 0:02:01.2]} 40...
Kg5 {[%clk 0:01:39.2]} 41. Rc8 {[%clk 0:01:55.5]} 41... Rdb6 {[%clk 0:01:39.1]}
42. Rcc2 {[%clk 0:01:56.3]} 42... Kh4 {[%clk 0:01:34.8]} 43. Kg2 {[%clk
0:01:56.9]} 43... Rf4 {[%clk 0:01:35.1]} 44. Rc3 {[%clk 0:01:53]} 44... Rfb4
{[%clk 0:01:35.5]} 45. Rcc2 {[%clk 0:01:53.6]} 45... f4 {[%clk 0:01:35.9]} 46.
Red2 {[%clk 0:01:51.1]} 46... R6b5 {[%clk 0:01:32.5]} 47. Kh2 {[%clk 0:01:44.4]}
47... Rg5 {[%clk 0:01:28.9]} 48. Rg2 {[%clk 0:01:45.2]} 48... Rd4 {[%clk
0:01:20]} 49. Rg4+ {[%clk 0:01:41.4]} 49... Rxg4 {[%clk 0:01:20.6]} 50. hxg4
{[%clk 0:01:42.4]} 50... b5 {[%clk 0:01:21]} 51. Kg2 {[%clk 0:01:43.3]} 51... b4
{[%clk 0:01:22.1]} 52. Re2 {[%clk 0:01:41.3]} 52... b3 {[%clk 0:01:17.9]} 53.
axb3 {[%clk 0:01:41.7]} 53... axb3 {[%clk 0:01:18.8]} 54. Kf1 {[%clk 0:01:32.6]}
54... Kg3 {[%clk 0:01:14.1]} 55. Rg2+ {[%clk 0:01:28.1]} 55... Kxf3 {[%clk
0:01:14.5]} 56. Rf2+ {[%clk 0:01:28.1]} 56... Kxg4 {[%clk 0:01:13.4]} 0-1

[Event "*** Monthly 3|2 Blitz Masters"]
[Site "Chess.com"]
[Date "2014.11.25"]
[Round "1"]
[White "DatsFunny"]
[Black "liczner"]
[Result "0-1"]
[WhiteElo "2095"]
[BlackElo "2406"]
[TimeControl "180+2"]
[EndTime "11:09:02 PST"]
[Termination "liczner won by resignation"]

1. e4 {[%clk 0:02:58.8]} 1... c6 {[%clk 0:02:57.9]} 2. Nf3 {[%clk 0:02:55.8]}
2... d5 {[%clk 0:02:56.3]} 3. Nc3 {[%clk 0:02:57]} 3... Bg4 {[%clk 0:02:56.3]}
4. h3 {[%clk 0:02:57.3]} 4... Bh5 {[%clk 0:02:57]} 5. g4 {[%clk 0:02:55.3]} 5...
Bg6 {[%clk 0:02:57.7]} 6. exd5 {[%clk 0:02:56.7]} 6... cxd5 {[%clk 0:02:59.6]}
7. d4 {[%clk 0:02:52.8]} 7... Nc6 {[%clk 0:02:59.1]} 8. Bb5 {[%clk 0:02:53.2]}
8... e6 {[%clk 0:02:59.1]} 9. Ne5 {[%clk 0:02:44.1]} 9... Rc8 {[%clk 0:02:59.9]}
10. h4 {[%clk 0:02:42.4]} 10... f6 {[%clk 0:02:58.7]} 11. Nxg6 {[%clk 0:02:36]}
11... hxg6 {[%clk 0:03:00.6]} 12. Qd3 {[%clk 0:02:37.2]} 12... Kf7 {[%clk
0:02:58.6]} 13. h5 {[%clk 0:02:25.9]} 13... gxh5 {[%clk 0:02:52.3]} 14. gxh5
{[%clk 0:02:25.9]} 14... Nge7 {[%clk 0:02:53.6]} 15. Bxc6 {[%clk 0:02:10.8]}
15... Rxc6 {[%clk 0:02:48.9]} 16. Qg3 {[%clk 0:01:55.3]} 16... Qb6 {[%clk
0:01:46.7]} 17. Ne2 {[%clk 0:01:34.1]} 17... Rxc2 {[%clk 0:01:44.4]} 18. Qd3
{[%clk 0:01:15.8]} 18... Rc6 {[%clk 0:01:28.7]} 19. b3 {[%clk 0:01:13.3]} 19...
Nf5 {[%clk 0:01:28.3]} 20. Bb2 {[%clk 0:01:04.3]} 20... Bb4+ {[%clk 0:01:26.2]}
21. Kf1 {[%clk 0:01:04.1]} 21... Qa6 {[%clk 0:01:11.5]} 22. Qxa6 {[%clk
0:00:58.3]} 22... Rxa6 {[%clk 0:01:12]} 23. a3 {[%clk 0:00:58.2]} 23... Bd6
{[%clk 0:01:09.3]} 24. Kg2 {[%clk 0:00:52.6]} 24... Rc8 {[%clk 0:01:03.8]} 25.
Rhc1 {[%clk 0:00:50.9]} 25... Rac6 {[%clk 0:01:01.5]} 26. Rxc6 {[%clk
0:00:49.3]} 26... Rxc6 {[%clk 0:01:03.4]} 27. Rc1 {[%clk 0:00:50.2]} 27... Rxc1
{[%clk 0:00:51.9]} 28. Bxc1 {[%clk 0:00:52.1]} 28... e5 {[%clk 0:00:42.7]} 29.
Bb2 {[%clk 0:00:44.1]} 29... e4 {[%clk 0:00:37.3]} 30. Nc3 {[%clk 0:00:43.2]}
30... Ke6 {[%clk 0:00:34.7]} 31. Ne2 {[%clk 0:00:41.5]} 31... Nh4+ {[%clk
0:00:30.5]} 32. Kh3 {[%clk 0:00:40.6]} 32... Nf3 {[%clk 0:00:31.9]} 33. Kg4
{[%clk 0:00:39.9]} 33... f5+ {[%clk 0:00:30.9]} 34. Kh3 {[%clk 0:00:40.1]} 34...
Kf6 {[%clk 0:00:26.3]} 35. Bc1 {[%clk 0:00:34.4]} 35... Ne1 {[%clk 0:00:19.6]}
36. Nf4 {[%clk 0:00:33]} 36... Bxf4 {[%clk 0:00:18.2]} 37. Bxf4 {[%clk
0:00:34.9]} 37... Nd3 {[%clk 0:00:19.1]} 38. Bb8 {[%clk 0:00:35.9]} 38... Nxf2+
{[%clk 0:00:13.9]} 39. Kg2 {[%clk 0:00:36.4]} 39... Nd3 {[%clk 0:00:14.7]} 40.
Bxa7 {[%clk 0:00:36.5]} 40... f4 {[%clk 0:00:15.4]} 41. Bb8 {[%clk 0:00:36.8]}
41... Kf5 {[%clk 0:00:15.2]} 42. a4 {[%clk 0:00:35.9]} 42... Kg4 {[%clk
0:00:15]} 43. a5 {[%clk 0:00:33.5]} 43... e3 {[%clk 0:00:14.6]} 44. Bd6 {[%clk
0:00:29.8]} 44... f3+ {[%clk 0:00:15.1]} 0-1

[Event "*** Monthly 3|2 Blitz Masters"]
[Site "Chess.com"]
[Date "2014.11.25"]
[Round "1"]
[White "lorcho"]
[Black "alturas_pacificas"]
[Result "1-0"]
[WhiteElo "2376"]
[BlackElo "2041"]
[TimeControl "180+2"]
[EndTime "11:09:02 PST"]
[Termination "lorcho won by checkmate"]

1. e4 {[%clk 0:02:54.8]} 1... e5 {[%clk 0:02:58.6]} 2. Nf3 {[%clk 0:02:55.4]}
2... Nf6 {[%clk 0:02:58.9]} 3. Nc3 {[%clk 0:02:55.4]} 3... Nc6 {[%clk 0:02:59]}
4. g3 {[%clk 0:02:56.4]} 4... Bc5 {[%clk 0:02:58.9]} 5. Bg2 {[%clk 0:02:57.1]}
5... d6 {[%clk 0:02:59.8]} 6. d3 {[%clk 0:02:56.2]} 6... h6 {[%clk 0:03:01.1]}
7. O-O {[%clk 0:02:56.1]} 7... a6 {[%clk 0:02:57.5]} 8. Be3 {[%clk 0:02:56.3]}
8... Be6 {[%clk 0:02:55.6]} 9. d4 {[%clk 0:02:53.8]} 9... exd4 {[%clk 0:02:56]}
10. Nxd4 {[%clk 0:02:55.7]} 10... Nxd4 {[%clk 0:02:55.2]} 11. Bxd4 {[%clk
0:02:53.6]} 11... O-O {[%clk 0:02:45.1]} 12. Bxc5 {[%clk 0:02:47.3]} 12... dxc5
{[%clk 0:02:47]} 13. e5 {[%clk 0:02:47.8]} 13... Nd7 {[%clk 0:02:46.3]} 14. Bxb7
{[%clk 0:02:46.2]} 14... Ra7 {[%clk 0:02:26.6]} 15. Bd5 {[%clk 0:02:37]} 15...
Nxe5 {[%clk 0:02:24.6]} 16. f4 {[%clk 0:02:36.5]} 16... Bg4 {[%clk 0:02:17.7]}
17. Bxf7+ {[%clk 0:02:23.1]} 17... Nxf7 {[%clk 0:01:21.1]} 18. Qxg4 {[%clk
0:02:20.3]} 18... Qd4+ {[%clk 0:01:19.2]} 19. Kh1 {[%clk 0:02:20.7]} 19... Qb4
{[%clk 0:01:17.8]} 20. Rab1 {[%clk 0:02:18.8]} 20... c6 {[%clk 0:01:18.2]} 21.
Rfe1 {[%clk 0:02:16.2]} 21... Rd8 {[%clk 0:01:11.5]} 22. Re4 {[%clk 0:02:08.4]}
22... c4 {[%clk 0:00:54.3]} 23. Qe6 {[%clk 0:01:51.3]} 23... Rad7 {[%clk
0:00:38.8]} 24. Qxc4 {[%clk 0:01:43.8]} 24... Qa5 {[%clk 0:00:38]} 25. Rbe1
{[%clk 0:01:42.4]} 25... Kh7 {[%clk 0:00:30.4]} 26. Qxc6 {[%clk 0:01:28.2]}
26... Qh5 {[%clk 0:00:26.3]} 27. Re7 {[%clk 0:01:11.4]} 27... Rd2 {[%clk
0:00:21.9]} 28. Qe4+ {[%clk 0:01:03]} 28... Kg8 {[%clk 0:00:20.2]} 29. Re8+
{[%clk 0:01:03.7]} 29... Rxe8 {[%clk 0:00:21.7]} 30. Qxe8+ {[%clk 0:01:04.8]}
30... Kh7 {[%clk 0:00:23.4]} 31. Qe4+ {[%clk 0:01:04.3]} 31... Kg8 {[%clk
0:00:22.5]} 32. Re2 {[%clk 0:01:04.7]} 32... Rxe2 {[%clk 0:00:23.4]} 33. Qxe2
{[%clk 0:01:02.8]} 33... Qc5 {[%clk 0:00:23.3]} 34. Qe8+ {[%clk 0:01:01.2]}
34... Kh7 {[%clk 0:00:22]} 35. Qe4+ {[%clk 0:00:44.9]} 35... Kg8 {[%clk
0:00:21]} 36. Kg2 {[%clk 0:00:46.2]} 36... Qc7 {[%clk 0:00:16.2]} 37. Nd5 {[%clk
0:00:42.9]} 37... Qd7 {[%clk 0:00:14.4]} 38. c4 {[%clk 0:00:37.4]} 38... Nd6
{[%clk 0:00:14.5]} 39. Qd3 {[%clk 0:00:30.5]} 39... Qe6 {[%clk 0:00:13.1]} 40.
b3 {[%clk 0:00:27.2]} 40... Nf5 {[%clk 0:00:13]} 41. Qxf5 {[%clk 0:00:21.8]}
41... Qe2+ {[%clk 0:00:07.3]} 42. Kh3 {[%clk 0:00:22.7]} 42... Qf1+ {[%clk
0:00:08.4]} 43. Kh4 {[%clk 0:00:23.8]} 43... Qf2 {[%clk 0:00:09.7]} 44. Ne7+
{[%clk 0:00:20.7]} 44... Kh8 {[%clk 0:00:11.3]} 45. Qf8+ {[%clk 0:00:21.7]}
45... Kh7 {[%clk 0:00:12.8]} 46. Qg8# {[%clk 0:00:23.2]} 1-0

[Event "*** Monthly 3|2 Blitz Masters"]
[Site "Chess.com"]
[Date "2014.11.25"]
[Round "1"]
[White "RitvarsReimanis"]
[Black "GMBenjaminBok"]
[Result "0-1"]
[WhiteElo "2246"]
[BlackElo "2605"]
[TimeControl "180+2"]
[EndTime "11:09:13 PST"]
[Termination "GMBenjaminBok won by resignation"]

1. d4 {[%clk 0:02:57.9]} 1... Nf6 {[%clk 0:02:58.4]} 2. Nf3 {[%clk 0:02:58]}
2... g6 {[%clk 0:02:58.8]} 3. g3 {[%clk 0:02:58.5]} 3... Bg7 {[%clk 0:02:57.9]}
4. Bg2 {[%clk 0:03:00.4]} 4... O-O {[%clk 0:02:55.7]} 5. O-O {[%clk 0:03:02.3]}
5... d6 {[%clk 0:02:43.3]} 6. Nc3 {[%clk 0:03:00.5]} 6... Nbd7 {[%clk 0:02:40]}
7. Bg5 {[%clk 0:02:57.9]} 7... h6 {[%clk 0:02:39.1]} 8. Bf4 {[%clk 0:02:58.3]}
8... c6 {[%clk 0:02:31.6]} 9. a4 {[%clk 0:02:54.2]} 9... Qc7 {[%clk 0:02:32]}
10. Qc1 {[%clk 0:02:42.8]} 10... Kh7 {[%clk 0:02:31.1]} 11. Rd1 {[%clk
0:02:40.1]} 11... e5 {[%clk 0:02:31.3]} 12. dxe5 {[%clk 0:02:40.4]} 12... dxe5
{[%clk 0:02:31.8]} 13. Be3 {[%clk 0:02:37.1]} 13... Re8 {[%clk 0:02:27.6]} 14.
a5 {[%clk 0:02:30.2]} 14... Ng4 {[%clk 0:02:27.8]} 15. Ne4 {[%clk 0:02:23.5]}
15... Nxe3 {[%clk 0:02:25.1]} 16. Qxe3 {[%clk 0:02:25.4]} 16... Nf6 {[%clk
0:02:23.3]} 17. Nfd2 {[%clk 0:02:21.6]} 17... Nd5 {[%clk 0:02:19.6]} 18. Qc5
{[%clk 0:02:18.2]} 18... Be6 {[%clk 0:02:09.6]} 19. Qd6 {[%clk 0:01:56.2]} 19...
Rad8 {[%clk 0:01:56]} 20. Qxc7 {[%clk 0:01:55.4]} 20... Nxc7 {[%clk 0:01:57.6]}
21. Nc5 {[%clk 0:01:52]} 21... Bc8 {[%clk 0:01:56.4]} 22. Nc4 {[%clk 0:01:52.2]}
22... Nd5 {[%clk 0:01:52.4]} 23. c3 {[%clk 0:01:43.8]} 23... Bf8 {[%clk
0:01:49.6]} 24. Ne4 {[%clk 0:01:42.3]} 24... f5 {[%clk 0:01:44.3]} 25. Ned2
{[%clk 0:01:21]} 25... e4 {[%clk 0:01:34.2]} 26. Nf1 {[%clk 0:01:13.3]} 26...
Be6 {[%clk 0:01:31.8]} 27. Nfe3 {[%clk 0:01:11.3]} 27... Nxe3 {[%clk 0:01:24.9]}
28. Nxe3 {[%clk 0:01:13.2]} 28... Bb3 {[%clk 0:01:22.7]} 29. Rxd8 {[%clk
0:01:08.3]} 29... Rxd8 {[%clk 0:01:23.8]} 30. f3 {[%clk 0:01:06.7]} 30... Bc5
{[%clk 0:01:24]} 31. Kf2 {[%clk 0:01:06.6]} 31... exf3 {[%clk 0:01:19.3]} 32.
Bxf3 {[%clk 0:01:08.5]} 32... Re8 {[%clk 0:01:19.7]} 33. a6 {[%clk 0:01:00.5]}
33... Bxe3+ {[%clk 0:01:18.9]} 34. Kg2 {[%clk 0:01:01.6]} 34... bxa6 {[%clk
0:01:15.8]} 35. Rxa6 {[%clk 0:01:02.1]} 35... Bd5 {[%clk 0:01:11]} 36. h4 {[%clk
0:01:03.5]} 36... Rb8 {[%clk 0:01:09.3]} 37. c4 {[%clk 0:00:48.6]} 37... Bxf3+
{[%clk 0:01:04.1]} 38. Kxf3 {[%clk 0:00:50.5]} 38... Bb6 {[%clk 0:01:04.6]} 39.
b4 {[%clk 0:00:48.6]} 39... c5 {[%clk 0:01:03.6]} 40. bxc5 {[%clk 0:00:45.7]}
40... Bxc5 {[%clk 0:01:03.9]} 41. Rc6 {[%clk 0:00:47.2]} 41... Rb3+ {[%clk
0:00:59.6]} 42. Kf4 {[%clk 0:00:41.8]} 42... Bf2 {[%clk 0:00:59.3]} 43. e3
{[%clk 0:00:33.8]} 43... Rxe3 {[%clk 0:00:52.6]} 44. h5 {[%clk 0:00:31.2]} 44...
gxh5 {[%clk 0:00:43]} 45. Kxf5 {[%clk 0:00:26.8]} 45... Rxg3 {[%clk 0:00:40.1]}
46. c5 {[%clk 0:00:20.3]} 46... Rg5+ {[%clk 0:00:38.8]} 47. Kf4 {[%clk
0:00:21.4]} 47... Bxc5 {[%clk 0:00:39.4]} 48. Ra6 {[%clk 0:00:21]} 48... Bb6
{[%clk 0:00:39.5]} 0-1

[Event "*** Monthly 3|2 Blitz Masters"]
[Site "Chess.com"]
[Date "2014.11.25"]
[Round "1"]
[White "josiwales"]
[Black "162a54f5d"]
[Result "0-1"]
[WhiteElo "1773"]
[BlackElo "2267"]
[TimeControl "180+2"]
[EndTime "11:09:14 PST"]
[Termination "162a54f5d won by resignation"]

1. e4 {[%clk 0:02:36.3]} 1... e5 {[%clk 0:02:57.5]} 2. Nf3 {[%clk 0:02:36.7]}
2... Nc6 {[%clk 0:02:57.9]} 3. Bb5 {[%clk 0:02:37.4]} 3... a6 {[%clk 0:02:57.1]}
4. Ba4 {[%clk 0:02:38.1]} 4... Nf6 {[%clk 0:02:57.7]} 5. O-O {[%clk 0:02:39]}
5... Be7 {[%clk 0:02:59]} 6. Re1 {[%clk 0:02:40]} 6... b5 {[%clk 0:03:00.4]} 7.
Bb3 {[%clk 0:02:40]} 7... d6 {[%clk 0:03:01.5]} 8. c3 {[%clk 0:02:40.2]} 8...
O-O {[%clk 0:03:02.2]} 9. d3 {[%clk 0:02:41.5]} 9... Na5 {[%clk 0:03:01.8]} 10.
Bc2 {[%clk 0:02:41.6]} 10... c5 {[%clk 0:02:52.3]} 11. h3 {[%clk 0:02:40.4]}
11... Nd7 {[%clk 0:02:48.6]} 12. Be3 {[%clk 0:02:38.5]} 12... Nb6 {[%clk
0:02:43]} 13. Nbd2 {[%clk 0:02:38.7]} 13... Nc6 {[%clk 0:02:35.9]} 14. Nf1
{[%clk 0:02:39.8]} 14... Re8 {[%clk 0:02:25.9]} 15. Ng3 {[%clk 0:02:39.4]} 15...
d5 {[%clk 0:02:20.9]} 16. Bd2 {[%clk 0:02:31]} 16... Bf8 {[%clk 0:02:04.2]} 17.
exd5 {[%clk 0:02:26.4]} 17... Nxd5 {[%clk 0:02:02.8]} 18. Ne4 {[%clk 0:02:26.5]}
18... f6 {[%clk 0:02:00.1]} 19. Bb3 {[%clk 0:02:24.2]} 19... Be6 {[%clk
0:02:01.1]} 20. Qc2 {[%clk 0:02:00.5]} 20... Qd7 {[%clk 0:01:44.7]} 21. Rad1
{[%clk 0:01:45.1]} 21... Rad8 {[%clk 0:01:38.2]} 22. Ng3 {[%clk 0:01:25.9]}
22... Qf7 {[%clk 0:01:11.5]} 23. Nh2 {[%clk 0:00:59.8]} 23... Nb6 {[%clk
0:00:58.4]} 24. Bxe6 {[%clk 0:00:57.8]} 24... Rxe6 {[%clk 0:01:00.3]} 25. Ng4
{[%clk 0:00:58.4]} 25... Red6 {[%clk 0:00:59.1]} 26. Nf5 {[%clk 0:00:58.8]}
26... Qb7 {[%clk 0:00:44.3]} 27. Nxd6 {[%clk 0:00:59]} 27... Rxd6 {[%clk
0:00:45.6]} 28. Be3 {[%clk 0:00:58.5]} 28... Rd7 {[%clk 0:00:44.1]} 29. h4
{[%clk 0:00:53.5]} 29... Qc8 {[%clk 0:00:34.4]} 30. h5 {[%clk 0:00:53.1]} 30...
h6 {[%clk 0:00:33.7]} 31. Bxh6 {[%clk 0:00:46.3]} 31... Rd6 {[%clk 0:00:34.9]}
32. Bxg7 {[%clk 0:00:41.7]} 32... Qxg4 {[%clk 0:00:31.1]} 33. Bxf8 {[%clk
0:00:40.7]} 33... Kxf8 {[%clk 0:00:33]} 34. Qe2 {[%clk 0:00:40.7]} 34... Qxe2
{[%clk 0:00:32.4]} 35. Rxe2 {[%clk 0:00:41.8]} 35... Nd5 {[%clk 0:00:34.3]} 36.
g3 {[%clk 0:00:38.1]} 36... Nce7 {[%clk 0:00:32.3]} 37. Kg2 {[%clk 0:00:38.8]}
37... Nf5 {[%clk 0:00:33.2]} 38. Rh1 {[%clk 0:00:36.8]} 38... Nh6 {[%clk
0:00:34]} 39. Re4 {[%clk 0:00:33.9]} 39... Ne7 {[%clk 0:00:34.5]} 40. Rd1 {[%clk
0:00:31.9]} 40... Nc6 {[%clk 0:00:32.5]} 41. g4 {[%clk 0:00:30.6]} 41... Nf7
{[%clk 0:00:33.8]} 42. f3 {[%clk 0:00:27.4]} 42... Ng5 {[%clk 0:00:34.3]} 43.
Re2 {[%clk 0:00:28]} 43... Ne6 {[%clk 0:00:35.7]} 44. Kg3 {[%clk 0:00:28.7]}
44... Nf4 {[%clk 0:00:36.8]} 45. Red2 {[%clk 0:00:29.6]} 45... Kf7 {[%clk
0:00:38.1]} 46. Kh4 {[%clk 0:00:27.7]} 46... Rd8 {[%clk 0:00:37.5]} 47. b3
{[%clk 0:00:26.5]} 47... Ke6 {[%clk 0:00:38.5]} 48. c4 {[%clk 0:00:27.5]} 48...
b4 {[%clk 0:00:39.1]} 49. Kg3 {[%clk 0:00:27.7]} 49... Nd4 {[%clk 0:00:40.5]}
50. Re1 {[%clk 0:00:26.1]} 50... Rg8 {[%clk 0:00:39.9]} 51. Kf2 {[%clk
0:00:24.6]} 51... f5 {[%clk 0:00:39.4]} 52. Re3 {[%clk 0:00:17.1]} 52... fxg4
{[%clk 0:00:39.6]} 53. fxg4 {[%clk 0:00:18.3]} 53... Rxg4 {[%clk 0:00:40.8]} 54.
Rg3 {[%clk 0:00:19.5]} 54... Rh4 {[%clk 0:00:41]} 55. Kg1 {[%clk 0:00:17]} 55...
Nde2+ {[%clk 0:00:40.3]} 56. Rxe2 {[%clk 0:00:18]} 56... Nxe2+ {[%clk
0:00:42.2]} 0-1